[Event "Icelandic-ch 2021"]
[Site "Kopavogur"]
[Date "2021.04.26"]
[Round "5.5"]
[White "Thorfinnsson, Bjorn"]
[Black "Kjartansson, Gudmundur"]
[Result "0-1"]
[ECO "E16"]
[WhiteElo "2384"]
[BlackElo "2503"]
[Annotator "ChessBase"]
[PlyCount "80"]
[EventDate "2021.04.22"]
[EventType "tourn"]
[EventCountry "ISL"]
[SourceTitle "playchess.com"]
[Source "ChessBase"]
[SourceQuality "1"]
[TimeControl "40/5400+30:1800+30"]

1. d4 {[%emt 0:00:00]} Nf6 {[%emt 0:00:00]} 2. c4 {[%emt 0:00:00]} e6 {[%emt 0:00:05]} 3. Nf3 {[%emt 0:00:00]} b6 {[%emt 0:02:07]} 4. g3 {[%emt 0:00:05]} Bb7 {[%emt 0:00:15]} 5. Bg2 {[%emt 0:00:11]} Bb4+ {[%emt 0:00:20]} 6. Bd2 {[%emt 0:00:05]} c5 {[%emt 0:00:03]} 7. d5 {[%emt 0:07:43]} O-O {[%emt 0:09:26]} 8. Bc3 {[%emt 0:28:55]} exd5 {[%emt 0:12:07]} 9. Nh4 {[%emt 0:02:19]} Ba6 {[%emt 0:11:48]} 10. Bxb4 {[%emt 0:29:24]} cxb4 {[%emt 0:01:22]} 11. Nd2 {[%emt 0:06:26]} Nc6 {[%emt 0:13:09]} 12. cxd5 {[%emt 0:05:23]} Nd4 {[%emt 0:00:29]} 13. Nc4 {[%emt 0:01:01]} Nxe2 {[%emt 0:01:02]} 14. Ne3 {[%emt 0:00:22]} Qc8 {[%emt 0:11:08]} 15. Qd2 {[%emt 0:04:14]} Qc5 {[%emt 0:14:47]} 16. Bf1 {[%emt 0:06:05]} Ne4 {[%emt 0:00:54]} 17. Qc2 {[%emt 0:00:02]} Nd4 {[%emt 0:01:45]} 18. Qxc5 {[%emt 0:01:30]} Nxc5 {[%emt 0:00:10]} 19. Bxa6 {[%emt 0:01:11]} Nxa6 {[%emt 0:00:05]} 20. O-O-O {[%emt 0:00:29]} Rfc8+ {[%emt 0:01:05]} 21. Kb1 {[%emt 0:00:04]} Nb5 {[%emt 0:00:17]} 22. d6 {[%emt 0:00:36]} Kf8 {[%emt 0:03:33]} 23. Nhf5 {[%emt 0:01:15]} Rc5 {[%emt 0:01:52]} 24. Nd5 {[%emt 0:00:33]} Re8 {[%emt 0:01:56]} 25. Rd2 {[%emt 0:00:40]} Re6 {[%emt 0:05:48]} 26. Rhd1 {[%emt 0:01:14]} Nxd6 {[%emt 0:02:39]} 27. Nxb4 {[%emt 0:01:00]} Nc4 {[%emt 0:02:22]} 28. Rxd7 {[%emt 0:00:50]} Nxb4 {[%emt 0:00:05]} 29. g4 {[%emt 0:00:17]} g6 {[%emt 0:00:47]} 30. Nh6 {[%emt 0:00:03]} Re7 {[%emt 0:00:21]} 31. f4 {[%emt 0:00:51]} Rc7 {[%emt 0:01:28]} 32. Rd8+ {[%emt 0:00:17]} Re8 {[%emt 0:00:07]} 33. g5 {[%emt 0:00:40]} Rxd8 {[%emt 0:01:06]} 34. Rxd8+ {[%emt 0:00:06]} Ke7 {[%emt 0:00:01]} 35. Rd4 {[%emt 0:00:28]} a5 {[%emt 0:01:04]} 36. a3 {[%emt 0:00:16]} Na6 {[%emt 0:00:16]} 37. f5 {[%emt 0:00:05]} gxf5 {[%emt 0:00:31]} 38. h4 {[%emt 0:00:36]} Ke6 {[%emt 0:01:23]} 39. Ng8 {[%emt 0:00:03]} Ne5 {[%emt 0:00:43]} 40. Nf6 {[%emt 0:00:00]} Nf3 {[%emt 0:00:00]} 0-1

[Event "Icelandic-ch 2021"]
[Site "Kopavogur"]
[Date "2021.04.27"]
[Round "6.2"]
[White "Thorfinnsson, Bragi"]
[Black "Thorfinnsson, Bjorn"]
[Result "1/2-1/2"]
[ECO "D55"]
[WhiteElo "2432"]
[BlackElo "2384"]
[Annotator "RC"]
[PlyCount "128"]
[EventDate "2021.04.22"]
[EventType "tourn"]
[EventCountry "ISL"]
[SourceTitle "playchess.com"]
[Source "ChessBase"]
[SourceQuality "1"]
[TimeControl "40/5400+30:1800+30"]

1. Nf3 {[%emt 0:01:24]} d5 {[%emt 0:03:26]} 2. d4 {[%emt 0:00:44]} e6 {[%emt 0:02:27]} 3. c4 {[%emt 0:02:08]} Be7 {[%emt 0:00:06]} 4. Qc2 {[%emt 0:00:46]} Nf6 {[%emt 0:02:28]} 5. Bg5 {[%emt 0:00:23]} Ne4 {[%emt 0:01:11]} 6. Bxe7 {[%emt 0:01:11]} Qxe7 {[%emt 0:00:05]} 7. Nc3 {[%emt 0:01:01]} Nxc3 {[%emt 0:05:44]} 8. Qxc3 {[%emt 0:02:25]} O-O {[%emt 0:02:58]} 9. e3 {[%emt 0:03:05]} c6 {[%emt 0:08:07]} 10. Bd3 {[%emt 0:05:36]} dxc4 {[%emt 0:04:02]} 11. Qxc4 {[%emt 0:01:46]} b6 {[%emt 0:00:31]} 12. Qc2 {[%emt 0:01:37]} h6 {[%emt 0:00:35]} 13. O-O {[%emt 0:17:06]} Bb7 {[%emt 0:00:06]} 14. Bh7+ {[%emt 0:00:52]} Kh8 {[%emt 0:00:06]} 15. Be4 {[%emt 0:00:05]} Nd7 {[%emt 0:03:52]} 16. Rac1 {[%emt 0:02:47]} Rac8 {[%emt 0:03:51]} 17. Qa4 {[%emt 0:06:24]} a6 {[%emt 0:00:28]} 18. Rc3 {[%emt 0:03:34]} b5 {[%emt 0:02:07]} 19. Qc2 {[%emt 0:01:20]} b4 {[%emt 0:05:47]} 20. Rc4 {[%emt 0:02:23]} Nb6 {[%emt 0:00:06]} 21. Rc5 {[%emt 0:00:26]} Nd7 {[%emt 0:00:06]} 22. Ra5 {[%emt 0:04:14]} f5 {[%emt 0:10:04]} 23. Bd3 {[%emt 0:00:24]} c5 {[%emt 0:00:55]} 24. Bxa6 {[%emt 0:01:14]} Ra8 {[%emt 0:11:00]} 25. Qe2 {[%emt 0:13:14]} Qd8 {[%emt 0:04:10]} 26. Bxb7 {[%emt 0:06:48]} Rxa5 {[%emt 0:00:09]} 27. Bc6 {[%emt 0:00:35]} Nf6 {[%emt 0:04:29]} 28. Ne5 {[%emt 0:00:46]} Kh7 {[%emt 0:00:18]} 29. Bf3 {[%emt 0:02:22]} Rxa2 {[%emt 0:02:47]} 30. Qc4 {[%emt 0:01:52]} Rxb2 {[%emt 0:00:59]} 31. Nd3 {[%emt 0:00:31]} Rd2 {[%emt 0:01:22]} 32. Nxc5 {[%emt 0:00:11]} Qb8 {[%emt 0:02:11]} 33. Qxe6 {[%emt 0:01:51]} f4 {[%emt 0:05:21]} 34. Qc4 {[%emt 0:03:02]} fxe3 {[%emt 0:04:10]} 35. fxe3 {[%emt 0:00:05]} Kh8 {[%emt 0:01:53]} 36. Rb1 {[%emt 0:05:10]} Nh7 {[%emt 0:04:08]} 37. Nd7 {[%emt 0:01:35]} Qe8 {[%emt 0:02:45]} 38. Nxf8 {[%emt 0:01:57]} Qxe3+ {[%emt 0:00:04]} 39. Kh1 {[%emt 0:00:06]} Nxf8 {[%emt 0:00:09]} 40. Qxb4 {[%emt 0:00:00]} Ne6 {[%emt 0:00:00]} 41. d5 {[%emt 0:10:43]} Nd4 {[%emt 0:01:59]} 42. Ra1 {[%emt 0:02:33]} Qd3 {[%emt 0:06:30]} 43. Bg4 {[%emt 0:04:14]} Rf2 {[%emt 0:01:22]} 44. Qe1 {[%emt 0:01:25]} Rf8 {[%emt 0:02:15]} 45. h3 {[%emt 0:05:14]} Nc2 {[%emt 0:09:18]} 46. Qd1 {[%emt 0:01:29]} Qxd1+ {[%emt 0:06:23]} 47. Rxd1 {[%emt 0:00:05]} Ne3 {[%emt 0:00:04]} 48. Rd3 {[%emt 0:01:18]} Nxg4 {[%emt 0:03:57]} 49. hxg4 {[%emt 0:00:04]} Kg8 {[%emt 0:00:07]} 50. Kh2 {[%emt 0:00:16]} Ra8 {[%emt 0:00:27]} 51. Kg3 {[%emt 0:01:38]} Kf7 {[%emt 0:00:20]} 52. Kf4 {[%emt 0:03:10]} Ra4+ {[%emt 0:02:46]} 53. Kf5 {[%emt 0:04:17]} g6+ {[%emt 0:01:17]} 54. Ke5 {[%emt 0:00:03]} Rxg4 {[%emt 0:00:42]} 55. Rf3+ {[%emt 0:02:02]} Ke8 {[%emt 0:01:04]} 56. g3 {[%emt 0:00:34]} Kd7 {[%emt 0:01:03]} 57. Ra3 {[%emt 0:03:00]} Rg5+ {[%emt 0:00:10]} 58. Kf6 {[%emt 0:01:31]} Kd6 {[%emt 0:00:06]} 59. Ra6+ {[%emt 0:00:07]} Kxd5 {[%emt 0:00:46]} 60. Ra5+ {[%emt 0:00:07]} Ke4 {[%emt 0:00:07]} 61. Rxg5 {[%emt 0:00:09]} hxg5 {[%emt 0:00:04]} 62. Kxg5 {[%emt 0:00:13]} Kf3 {[%emt 0:00:05]} 63. g4 {[%emt 0:00:15]} Kg3 {[%emt 0:00:04]} 64. Kxg6 {[%emt 0:00:04]} Kxg4 {[%emt 0:00:04]} 1/2-1/2

[Event "Icelandic-ch 2021"]
[Site "Kopavogur"]
[Date "2021.04.27"]
[Round "6.5"]
[White "Gretarsson, Helgi Ass"]
[Black "Bjornsson, Sigurbjorn"]
[Result "1-0"]
[ECO "E62"]
[WhiteElo "2437"]
[BlackElo "2327"]
[Annotator "NA"]
[PlyCount "81"]
[EventDate "2021.04.22"]
[EventType "tourn"]
[EventCountry "ISL"]
[SourceTitle "playchess.com"]
[Source "ChessBase"]
[SourceQuality "1"]
[TimeControl "40/5400+30:1800+30"]

1. Nf3 {[%emt 0:00:00]} Nf6 {[%emt 0:00:00]} 2. g3 {[%emt 0:00:00]} g6 {[%emt 0:00:00]} 3. Bg2 {[%emt 0:00:00]} Bg7 {[%emt 0:00:00]} 4. c4 {[%emt 0:00:00]} O-O {[%emt 0:00:00]} 5. Nc3 {[%emt 0:00:00]} d6 {[%emt 0:00:04]} 6. d4 {[%emt 0:00:00]} Nc6 {[%emt 0:00:13]} 7. O-O {[%emt 0:00:10]} Bf5 {[%emt 0:00:10]} 8. d5 {[%emt 0:05:28]} Na5 {[%emt 0:01:49]} 9. Nh4 {[%emt 0:00:07]} Bd7 {[%emt 0:00:07]} 10. b3 {[%emt 0:00:06]} c5 {[%emt 0:00:20]} 11. Bb2 {[%emt 0:00:17]} a6 {[%emt 0:01:37]} 12. Qd2 {[%emt 0:00:08]} b5 {[%emt 0:02:01]} 13. Nd1 {[%emt 0:00:08]} Rb8 {[%emt 0:03:42]} 14. Bc3 {[%emt 0:01:05]} Nb7 {[%emt 0:04:45]} 15. e4 {[%emt 0:21:47]} e5 {[%emt 0:01:13]} 16. dxe6 {[%emt 0:00:26]} Bxe6 {[%emt 0:01:20]} 17. f4 {[%emt 0:09:01]} Re8 {[%emt 0:05:33]} 18. Ne3 {[%emt 0:03:47]} Bd7 {[%emt 0:21:29]} 19. e5 {[%emt 0:03:34]} Ng4 {[%emt 0:04:14]} 20. Rad1 {[%emt 0:01:45]} dxe5 {[%emt 0:08:52]} 21. Nd5 {[%emt 0:15:10]} bxc4 {[%emt 0:14:51]} 22. h3 {[%emt 0:02:48]} cxb3 {[%emt 0:18:48]} 23. hxg4 {[%emt 0:01:41]} Bxg4 {[%emt 0:00:06]} 24. Rde1 {[%emt 0:23:47]} Nd6 {[%emt 0:03:11]} 25. fxe5 {[%emt 0:00:48]} Nb5 {[%emt 0:02:26]} 26. Ba5 {[%emt 0:00:51]} Qd7 {[%emt 0:00:18]} 27. axb3 {[%emt 0:00:05]} Rxe5 {[%emt 0:01:33]} 28. Rxe5 {[%emt 0:02:06]} Bxe5 {[%emt 0:00:02]} 29. Nf3 {[%emt 0:00:08]} Bg7 {[%emt 0:00:36]} 30. Ng5 {[%emt 0:00:35]} Bd4+ {[%emt 0:02:58]} 31. Qxd4 {[%emt 0:00:31]} Nxd4 {[%emt 0:01:23]} 32. Nf6+ {[%emt 0:00:28]} Kh8 {[%emt 0:00:55]} 33. Nxd7 {[%emt 0:00:06]} Bxd7 {[%emt 0:00:04]} 34. Rxf7 {[%emt 0:00:10]} Bc6 {[%emt 0:00:36]} 35. Bxc6 {[%emt 0:05:28]} Nxc6 {[%emt 0:00:02]} 36. Bc3+ {[%emt 0:00:12]} Nd4 {[%emt 0:00:35]} 37. Ne6 {[%emt 0:00:07]} Kg8 {[%emt 0:00:36]} 38. Rg7+ {[%emt 0:00:06]} Kh8 {[%emt 0:00:08]} 39. Nxd4 {[%emt 0:01:16]} cxd4 {[%emt 0:01:25]} 40. Bxd4 {[%emt 0:00:00]} Rb4 {[%emt 0:00:00]} 41. Ba1 {[%emt 0:00:14]} 1-0

[Event "Icelandic-ch 2021"]
[Site "Kopavogur"]
[Date "2021.04.29"]
[Round "8.1"]
[White "Hjartarson, Johann"]
[Black "Thorfinnsson, Bragi"]
[Result "0-1"]
[ECO "C45"]
[WhiteElo "2523"]
[BlackElo "2432"]
[Annotator "ChessBase"]
[PlyCount "68"]
[EventDate "2021.04.22"]
[EventType "tourn"]
[EventCountry "ISL"]
[SourceTitle "playchess.com"]
[Source "ChessBase"]
[SourceQuality "1"]
[TimeControl "40/5400+30:1800+30"]

1. e4 {[%emt 0:00:21]} e5 {[%emt 0:00:00]} 2. Nf3 {[%emt 0:00:09]} Nc6 {[%emt 0:00:00]} 3. d4 {[%emt 0:00:28]} exd4 {[%emt 0:00:31]} 4. Nxd4 {[%emt 0:00:07]} Nf6 {[%emt 0:02:42]} 5. Nxc6 {[%emt 0:00:20]} bxc6 {[%emt 0:00:09]} 6. e5 {[%emt 0:00:05]} Qe7 {[%emt 0:00:24]} 7. Qe2 {[%emt 0:00:11]} Nd5 {[%emt 0:00:21]} 8. c4 {[%emt 0:00:15]} Nb6 {[%emt 0:01:41]} 9. Nc3 {[%emt 0:00:53]} Bb7 {[%emt 0:06:33]} 10. h4 {[%emt 0:01:16]} O-O-O {[%emt 0:02:39]} 11. Bg5 {[%emt 0:02:39]} f6 {[%emt 0:01:56]} 12. exf6 {[%emt 0:00:11]} gxf6 {[%emt 0:17:09]} 13. Bf4 {[%emt 0:06:55]} Qf7 {[%emt 0:03:31]} 14. O-O-O {[%emt 0:01:44]} Ba6 {[%emt 0:01:23]} 15. b3 {[%emt 0:03:32]} Ba3+ {[%emt 0:02:38]} 16. Kc2 {[%emt 0:22:38]} d5 {[%emt 0:00:37]} 17. Qg4+ {[%emt 0:00:43]} f5 {[%emt 0:01:58]} 18. Qf3 {[%emt 0:00:35]} dxc4 {[%emt 0:03:49]} 19. Rxd8+ {[%emt 0:06:23]} Rxd8 {[%emt 0:00:18]} 20. Qxc6 {[%emt 0:00:28]} Bd6 {[%emt 0:09:13]} 21. Bg5 {[%emt 0:02:26]} cxb3+ {[%emt 0:05:22]} 22. axb3 {[%emt 0:00:12]} Bb7 {[%emt 0:00:15]} 23. Qb5 {[%emt 0:00:30]} Re8 {[%emt 0:00:56]} 24. Qa5 {[%emt 0:04:15]} Re5 {[%emt 0:07:17]} 25. Qxa7 {[%emt 0:02:16]} f4 {[%emt 0:01:19]} 26. Ba6 {[%emt 0:03:07]} Bxa6 {[%emt 0:07:47]} 27. Qxa6+ {[%emt 0:00:22]} Kd7 {[%emt 0:00:28]} 28. Qd3 {[%emt 0:07:43]} Rc5 {[%emt 0:01:21]} 29. Kb2 {[%emt 0:04:20]} Nd5 {[%emt 0:04:29]} 30. Na4 {[%emt 0:06:13]} Ra5 {[%emt 0:09:30]} 31. Rc1 {[%emt 0:04:52]} Kc8 {[%emt 0:00:12]} 32. Kb1 {[%emt 0:07:55]} Nb4 {[%emt 0:01:40]} 33. Qh3+ {[%emt 0:04:18]} Kb8 {[%emt 0:00:10]} 34. Rc4 {[%emt 0:01:22]} Rxa4 {[%emt 0:00:47]} 0-1

[Event "Icelandic-ch 2021"]
[Site "Kopavogur"]
[Date "2021.04.29"]
[Round "8.3"]
[White "Mai, Alexander Oliver"]
[Black "Thorfinnsson, Bjorn"]
[Result "0-1"]
[ECO "C46"]
[WhiteElo "2025"]
[BlackElo "2384"]
[Annotator "NA"]
[PlyCount "108"]
[EventDate "2021.04.22"]
[EventType "tourn"]
[EventCountry "ISL"]
[SourceTitle "playchess.com"]
[Source "ChessBase"]
[SourceQuality "1"]
[TimeControl "40/5400+30:1800+30"]

1. e4 {[%emt 0:00:00]} e5 {[%emt 0:00:00]} 2. Nf3 {[%emt 0:00:00]} Nc6 {[%emt 0:00:00]} 3. Nc3 {[%emt 0:00:00]} f5 {[%emt 0:02:00]} 4. d4 {[%emt 0:26:19]} fxe4 {[%emt 0:03:46]} 5. Nxe5 {[%emt 0:00:53]} Nf6 {[%emt 0:01:59]} 6. Bg5 {[%emt 0:03:19]} Bb4 {[%emt 0:00:41]} 7. Bc4 {[%emt 0:06:52]} d5 {[%emt 0:04:07]} 8. Bxf6 {[%emt 0:02:03]} Qxf6 {[%emt 0:00:10]} 9. Bxd5 {[%emt 0:00:43]} Nxe5 {[%emt 0:01:05]} 10. dxe5 {[%emt 0:00:12]} Qxe5 {[%emt 0:00:10]} 11. O-O {[%emt 0:02:53]} Bxc3 {[%emt 0:13:20]} 12. bxc3 {[%emt 0:00:26]} c6 {[%emt 0:02:13]} 13. Bxe4 {[%emt 0:05:10]} O-O {[%emt 0:09:44]} 14. Qd3 {[%emt 0:01:33]} Bf5 {[%emt 0:01:27]} 15. Rae1 {[%emt 0:03:23]} Rad8 {[%emt 0:15:36]} 16. Qc4+ {[%emt 0:04:06]} Qe6 {[%emt 0:00:14]} 17. Qxe6+ {[%emt 0:01:33]} Bxe6 {[%emt 0:00:14]} 18. Bxh7+ {[%emt 0:01:22]} Kxh7 {[%emt 0:00:05]} 19. Rxe6 {[%emt 0:00:04]} Rd2 {[%emt 0:00:05]} 20. Re7 {[%emt 0:02:37]} b5 {[%emt 0:01:33]} 21. Rxa7 {[%emt 0:03:53]} Rxc2 {[%emt 0:00:08]} 22. g3 {[%emt 0:08:03]} Rxc3 {[%emt 0:01:07]} 23. Re1 {[%emt 0:02:45]} Kh6 {[%emt 0:00:11]} 24. Re6+ {[%emt 0:06:09]} Rf6 {[%emt 0:00:06]} 25. Rxf6+ {[%emt 0:00:22]} gxf6 {[%emt 0:00:05]} 26. Ra6 {[%emt 0:11:21]} Kg6 {[%emt 0:00:23]} 27. Rb6 {[%emt 0:01:35]} Kf5 {[%emt 0:00:34]} 28. Kg2 {[%emt 0:01:09]} Rc2 {[%emt 0:01:08]} 29. h4 {[%emt 0:00:36]} Ke6 {[%emt 0:00:40]} 30. g4 {[%emt 0:00:44]} Kd5 {[%emt 0:00:29]} 31. Ra6 {[%emt 0:00:53]} Re2 {[%emt 0:00:22]} 32. Kg3 {[%emt 0:01:05]} c5 {[%emt 0:05:18]} 33. h5 {[%emt 0:03:08]} c4 {[%emt 0:00:13]} 34. Ra8 {[%emt 0:01:14]} Re1 {[%emt 0:04:54]} 35. Kg2 {[%emt 0:00:29]} Re7 {[%emt 0:00:20]} 36. Rc8 {[%emt 0:00:20]} Ra7 {[%emt 0:01:46]} 37. Kg3 {[%emt 0:00:43]} b4 {[%emt 0:00:28]} 38. Rd8+ {[%emt 0:00:30]} Kc5 {[%emt 0:00:51]} 39. Rd2 {[%emt 0:00:18]} c3 {[%emt 0:00:09]} 40. Re2 {[%emt 0:00:00]} Kd4 {[%emt 0:00:00]} 41. f4 {[%emt 0:27:21]} Kd3 {[%emt 0:06:17]} 42. Re1 {[%emt 0:00:24]} c2 {[%emt 0:05:51]} 43. g5 {[%emt 0:00:25]} fxg5 {[%emt 0:00:06]} 44. fxg5 {[%emt 0:00:05]} Rxa2 {[%emt 0:06:51]} 45. h6 {[%emt 0:04:59]} b3 {[%emt 0:00:26]} 46. h7 {[%emt 0:00:26]} Ra8 {[%emt 0:00:05]} 47. g6 {[%emt 0:00:33]} b2 {[%emt 0:00:06]} 48. g7 {[%emt 0:00:18]} c1=Q {[%emt 0:00:12]} 49. Rxc1 {[%emt 0:00:17]} bxc1=Q {[%emt 0:00:13]} 50. h8=Q {[%emt 0:00:25]} Qg1+ {[%emt 0:00:34]} 51. Kf3 {[%emt 0:01:00]} Qe3+ {[%emt 0:00:08]} 52. Kg4 {[%emt 0:00:18]} Qd4+ {[%emt 0:00:08]} 53. Kf5 {[%emt 0:00:16]} Rxh8 {[%emt 0:00:06]} 54. gxh8=Q {[%emt 0:00:05]} Qxh8 {[%emt 0:00:06]} 0-1

[Event "Icelandic-ch 2021"]
[Site "Kopavogur"]
[Date "2021.04.29"]
[Round "8.5"]
[White "Bjornsson, Sigurbjorn"]
[Black "Stefansson, Hannes"]
[Result "1-0"]
[ECO "B67"]
[WhiteElo "2327"]
[BlackElo "2532"]
[Annotator "ChessBase"]
[PlyCount "91"]
[EventDate "2021.04.22"]
[EventType "tourn"]
[EventCountry "ISL"]
[SourceTitle "playchess.com"]
[Source "ChessBase"]
[SourceQuality "1"]
[TimeControl "40/5400+30:1800+30"]

1. e4 {[%emt 0:00:00]} c5 {[%emt 0:00:00]} 2. Nf3 {[%emt 0:00:18]} d6 {[%emt 0:00:00]} 3. d4 {[%emt 0:00:16]} cxd4 {[%emt 0:00:04]} 4. Nxd4 {[%emt 0:00:03]} Nf6 {[%emt 0:00:11]} 5. Nc3 {[%emt 0:00:05]} Nc6 {[%emt 0:00:13]} 6. Bg5 {[%emt 0:00:17]} e6 {[%emt 0:00:28]} 7. Qd2 {[%emt 0:00:04]} a6 {[%emt 0:00:44]} 8. O-O-O {[%emt 0:00:10]} Bd7 {[%emt 0:00:27]} 9. f3 {[%emt 0:00:49]} Be7 {[%emt 0:00:46]} 10. Kb1 {[%emt 0:00:14]} Qc7 {[%emt 0:01:38]} 11. h4 {[%emt 0:00:25]} h6 {[%emt 0:02:00]} 12. Be3 {[%emt 0:00:07]} h5 {[%emt 0:00:41]} 13. Bg5 {[%emt 0:00:09]} Ne5 {[%emt 0:04:03]} 14. Bd3 {[%emt 0:03:46]} b5 {[%emt 0:03:38]} 15. Rhe1 {[%emt 0:01:55]} b4 {[%emt 0:06:02]} 16. Nce2 {[%emt 0:00:12]} a5 {[%emt 0:02:27]} 17. f4 {[%emt 0:04:51]} Neg4 {[%emt 0:03:19]} 18. Ng3 {[%emt 0:10:29]} Qc5 {[%emt 0:06:14]} 19. e5 {[%emt 0:20:29]} Nd5 {[%emt 0:21:23]} 20. Bxe7 {[%emt 0:01:54]} Kxe7 {[%emt 0:00:24]} 21. Nb3 {[%emt 0:06:43]} Qf2 {[%emt 0:04:27]} 22. exd6+ {[%emt 0:00:24]} Ke8 {[%emt 0:05:12]} 23. Be4 {[%emt 0:02:59]} Qxg3 {[%emt 0:02:50]} 24. Bxd5 {[%emt 0:00:10]} Rc8 {[%emt 0:06:07]} 25. f5 {[%emt 0:13:01]} Qxd6 {[%emt 0:02:31]} 26. fxe6 {[%emt 0:02:21]} fxe6 {[%emt 0:00:08]} 27. Bxe6 {[%emt 0:01:48]} Qxd2 {[%emt 0:00:08]} 28. Bxd7+ {[%emt 0:00:06]} Kxd7 {[%emt 0:00:05]} 29. Rxd2+ {[%emt 0:00:04]} Kc7 {[%emt 0:00:25]} 30. Nxa5 {[%emt 0:00:51]} Rhe8 {[%emt 0:00:37]} 31. Rde2 {[%emt 0:07:42]} Rxe2 {[%emt 0:00:50]} 32. Rxe2 {[%emt 0:00:02]} Rf8 {[%emt 0:00:30]} 33. a3 {[%emt 0:01:24]} bxa3 {[%emt 0:00:39]} 34. b3 {[%emt 0:00:41]} Kb6 {[%emt 0:14:01]} 35. Nc4+ {[%emt 0:00:56]} Kc5 {[%emt 0:00:04]} 36. Nxa3 {[%emt 0:01:12]} Kd4 {[%emt 0:01:11]} 37. Nb5+ {[%emt 0:09:42]} Kc5 {[%emt 0:00:13]} 38. Nc7 {[%emt 0:00:30]} Rf1+ {[%emt 0:04:22]} 39. Kb2 {[%emt 0:01:08]} g6 {[%emt 0:01:42]} 40. Ne6+ {[%emt 0:00:00]} Kd6 {[%emt 0:00:00]} 41. Ng5 {[%emt 0:01:31]} Ne5 {[%emt 0:01:17]} 42. Ne4+ {[%emt 0:03:31]} Kd5 {[%emt 0:00:09]} 43. Nd2 {[%emt 0:02:59]} Rh1 {[%emt 0:00:17]} 44. c4+ {[%emt 0:00:44]} Kd6 {[%emt 0:01:23]} 45. Ne4+ {[%emt 0:01:45]} Kd7 {[%emt 0:00:51]} 46. Ng3 {[%emt 0:01:10]} 1-0

[Event "Icelandic-ch 2021"]
[Site "Kopavogur"]
[Date "2021.04.30"]
[Round "9.3"]
[White "Thorfinnsson, Bjorn"]
[Black "Gretarsson, Helgi Ass"]
[Result "0-1"]
[ECO "A40"]
[WhiteElo "2384"]
[BlackElo "2437"]
[Annotator "NA"]
[PlyCount "50"]
[EventDate "2021.04.22"]
[EventType "tourn"]
[EventCountry "ISL"]
[SourceTitle "playchess.com"]
[Source "ChessBase"]
[SourceQuality "1"]
[TimeControl "40/5400+30:1800+30"]

1. d4 {[%emt 0:00:00]} g6 {[%emt 0:00:00]} 2. c4 {[%emt 0:00:00]} Bg7 {[%emt 0:00:00]} 3. Nc3 {[%emt 0:00:00]} c5 {[%emt 0:00:00]} 4. d5 {[%emt 0:00:05]} Bxc3+ {[%emt 0:03:21]} 5. bxc3 {[%emt 0:00:06]} f5 {[%emt 0:00:04]} 6. g4 {[%emt 0:01:42]} fxg4 {[%emt 0:00:07]} 7. h3 {[%emt 0:00:39]} g3 {[%emt 0:03:51]} 8. f4 {[%emt 0:05:38]} d6 {[%emt 0:14:52]} 9. Bg2 {[%emt 0:02:13]} Qa5 {[%emt 0:02:16]} 10. Qd3 {[%emt 0:00:53]} Nd7 {[%emt 0:00:46]} 11. e4 {[%emt 0:02:53]} Nb6 {[%emt 0:00:29]} 12. Nf3 {[%emt 0:09:02]} Nf6 {[%emt 0:04:11]} 13. O-O {[%emt 0:01:15]} Qa4 {[%emt 0:16:42]} 14. Nd2 {[%emt 0:01:14]} Nh5 {[%emt 0:00:08]} 15. f5 {[%emt 0:02:43]} Bd7 {[%emt 0:21:43]} 16. e5 {[%emt 0:03:43]} Bxf5 {[%emt 0:00:20]} 17. Rxf5 {[%emt 0:03:20]} gxf5 {[%emt 0:00:04]} 18. Bf3 {[%emt 0:00:16]} Nf4 {[%emt 0:03:47]} 19. Qe3 {[%emt 0:00:40]} dxe5 {[%emt 0:02:06]} 20. Qxe5 {[%emt 0:01:23]} Ng6 {[%emt 0:00:09]} 21. Bh5 {[%emt 0:00:04]} O-O-O {[%emt 0:00:16]} 22. Bxg6 {[%emt 0:00:24]} hxg6 {[%emt 0:00:03]} 23. Nb3 {[%emt 0:00:05]} Nxc4 {[%emt 0:00:26]} 24. Qxe7 {[%emt 0:00:14]} Nd6 {[%emt 0:04:47]} 25. Bg5 {[%emt 0:01:04]} b6 {[%emt 0:00:52]} 0-1

[Event "Icelandic-ch 2021"]
[Site "Kopavogur"]
[Date "2021.04.30"]
[Round "9.4"]
[White "Kjartansson, Gudmundur"]
[Black "Mai, Alexander Oliver"]
[Result "1-0"]
[ECO "D35"]
[WhiteElo "2503"]
[BlackElo "2025"]
[Annotator "ChessBase"]
[PlyCount "95"]
[EventDate "2021.04.22"]
[EventType "tourn"]
[EventCountry "ISL"]
[SourceTitle "playchess.com"]
[Source "ChessBase"]
[SourceQuality "1"]
[TimeControl "40/5400+30:1800+30"]

1. d4 {[%emt 0:00:00]} Nf6 {[%emt 0:00:00]} 2. c4 {[%emt 0:00:00]} e6 {[%emt 0:00:00]} 3. Nc3 {[%emt 0:00:03]} d5 {[%emt 0:00:00]} 4. cxd5 {[%emt 0:00:16]} exd5 {[%emt 0:00:00]} 5. Bg5 {[%emt 0:00:11]} c6 {[%emt 0:00:04]} 6. e3 {[%emt 0:00:16]} Bf5 {[%emt 0:00:05]} 7. Qf3 {[%emt 0:00:13]} Bg6 {[%emt 0:00:06]} 8. Bxf6 {[%emt 0:00:05]} Qxf6 {[%emt 0:00:04]} 9. Qxf6 {[%emt 0:00:04]} gxf6 {[%emt 0:00:02]} 10. Nf3 {[%emt 0:00:44]} Nd7 {[%emt 0:01:54]} 11. Nh4 {[%emt 0:00:32]} Be7 {[%emt 0:05:37]} 12. Ne2 {[%emt 0:00:45]} f5 {[%emt 0:08:51]} 13. Nf3 {[%emt 0:01:32]} Nb6 {[%emt 0:05:49]} 14. Nf4 {[%emt 0:02:57]} Nc8 {[%emt 0:05:53]} 15. h4 {[%emt 0:01:24]} h5 {[%emt 0:00:09]} 16. Ne5 {[%emt 0:02:35]} Rh6 {[%emt 0:00:53]} 17. g3 {[%emt 0:08:43]} a5 {[%emt 0:03:32]} 18. a4 {[%emt 0:09:22]} Nb6 {[%emt 0:01:08]} 19. Be2 {[%emt 0:04:41]} Bd6 {[%emt 0:01:57]} 20. Ned3 {[%emt 0:01:49]} Ke7 {[%emt 0:02:06]} 21. b3 {[%emt 0:01:55]} Nd7 {[%emt 0:00:46]} 22. Kd2 {[%emt 0:03:07]} Nf8 {[%emt 0:06:08]} 23. Rhb1 {[%emt 0:06:35]} Ne6 {[%emt 0:00:53]} 24. b4 {[%emt 0:02:11]} Nxf4 {[%emt 0:03:30]} 25. exf4 {[%emt 0:00:58]} axb4 {[%emt 0:06:44]} 26. Nxb4 {[%emt 0:00:10]} Bxb4+ {[%emt 0:16:00]} 27. Rxb4 {[%emt 0:00:05]} Ra7 {[%emt 0:00:08]} 28. a5 {[%emt 0:08:20]} Kd6 {[%emt 0:07:48]} 29. Rb6 {[%emt 0:05:07]} Rh8 {[%emt 0:10:06]} 30. a6 {[%emt 0:03:44]} Kc7 {[%emt 0:01:28]} 31. Rab1 {[%emt 0:00:51]} bxa6 {[%emt 0:00:22]} 32. Bxa6 {[%emt 0:00:45]} Re8 {[%emt 0:01:15]} 33. Rxc6+ {[%emt 0:04:32]} Kxc6 {[%emt 0:00:26]} 34. Bb5+ {[%emt 0:00:03]} Kd6 {[%emt 0:00:43]} 35. Bxe8 {[%emt 0:00:06]} Ra2+ {[%emt 0:01:02]} 36. Ke1 {[%emt 0:00:40]} Rc2 {[%emt 0:01:13]} 37. Bb5 {[%emt 0:01:55]} Ra2 {[%emt 0:03:10]} 38. Rb4 {[%emt 0:03:22]} Ra1+ {[%emt 0:01:41]} 39. Ke2 {[%emt 0:00:12]} Ra2+ {[%emt 0:00:29]} 40. Kf1 {[%emt 0:00:00]} Ra1+ {[%emt 0:00:00]} 41. Kg2 {[%emt 0:01:09]} Rd1 {[%emt 0:05:08]} 42. Be2 {[%emt 0:04:45]} Rd2 {[%emt 0:00:30]} 43. Kf1 {[%emt 0:00:58]} Ra2 {[%emt 0:04:28]} 44. Rb6+ {[%emt 0:00:32]} Kc7 {[%emt 0:00:26]} 45. Rb5 {[%emt 0:00:50]} Kc6 {[%emt 0:00:24]} 46. Rc5+ {[%emt 0:00:13]} Kd6 {[%emt 0:00:23]} 47. Bf3 {[%emt 0:00:11]} Ra1+ {[%emt 0:00:03]} 48. Kg2 {[%emt 0:00:07]} 1-0